[Event "Early-Titled-Tuesday-Blitz-March-26-2024"]
[Site "Chess.com"]
[Date "2024.03.26"]
[Round "2"]
[White "Korchmar_Vasiliy"]
[Black "Msb2"]
[Result "0-1"]
[WhiteElo "2698"]
[BlackElo "3035"]
[TimeControl "180+1"]
[EndTime "8:17:53 PDT"]
[Termination "Msb2 won on time"]

1. Nf3 {[%clk 0:03:00.9]} 1... d5 {[%clk 0:03:00.3]} 2. g3 {[%clk 0:03:00.4]}
2... e6 {[%clk 0:02:59.9]} 3. Bg2 {[%clk 0:02:56.9]} 3... Nf6 {[%clk 0:03:00.2]}
4. d4 {[%clk 0:02:56.5]} 4... Bd6 {[%clk 0:03:00.5]} 5. O-O {[%clk 0:02:53.6]}
5... O-O {[%clk 0:03:01]} 6. c4 {[%clk 0:02:52.9]} 6... Nc6 {[%clk 0:03:01.8]}
7. b3 {[%clk 0:02:41.1]} 7... dxc4 {[%clk 0:03:01.9]} 8. bxc4 {[%clk 0:02:40.9]}
8... e5 {[%clk 0:03:02.6]} 9. d5 {[%clk 0:02:12.9]} 9... Na5 {[%clk 0:03:00.8]}
10. Qc2 {[%clk 0:02:02.3]} 10... c6 {[%clk 0:02:56.2]} 11. c5 {[%clk 0:01:56.7]}
11... Bb8 {[%clk 0:02:38.2]} 12. d6 {[%clk 0:01:57]} 12... Nd7 {[%clk
0:02:24.3]} 13. Bg5 {[%clk 0:01:44.8]} 13... f6 {[%clk 0:02:24.2]} 14. Bd2
{[%clk 0:01:44.9]} 14... Kh8 {[%clk 0:02:18]} 15. Nh4 {[%clk 0:01:40.4]} 15...
a6 {[%clk 0:02:00.8]} 16. Be4 {[%clk 0:01:38.2]} 16... g6 {[%clk 0:01:49]} 17.
Bxg6 {[%clk 0:01:15.4]} 17... hxg6 {[%clk 0:01:49.1]} 18. Qxg6 {[%clk
0:01:16.3]} 18... Qe8 {[%clk 0:01:46.4]} 19. Qh6+ {[%clk 0:01:14.4]} 19... Kg8
{[%clk 0:01:47]} 20. Nf5 {[%clk 0:00:54.4]} 20... Rf7 {[%clk 0:01:20.1]} 21.
Qg6+ {[%clk 0:00:53.1]} 21... Kh8 {[%clk 0:01:20.8]} 22. Bxa5 {[%clk 0:00:20.6]}
22... Nf8 {[%clk 0:01:13.1]} 23. Qh5+ {[%clk 0:00:16.7]} 23... Nh7 {[%clk
0:01:13.7]} 24. Nc3 {[%clk 0:00:12.5]} 24... Qe6 {[%clk 0:01:07.6]} 25. e4
{[%clk 0:00:09.7]} 25... Ba7 {[%clk 0:01:08.1]} 26. Bb6 {[%clk 0:00:08.3]} 26...
Bxb6 {[%clk 0:01:07.2]} 27. cxb6 {[%clk 0:00:09.2]} 27... Bd7 {[%clk 0:01:08.1]}
28. Na4 {[%clk 0:00:08.8]} 28... Rg8 {[%clk 0:01:06.1]} 29. Nc5 {[%clk
0:00:08.7]} 29... Qe8 {[%clk 0:01:06.9]} 30. Nh6 {[%clk 0:00:06.3]} 30... Rfg7
{[%clk 0:00:59.7]} 31. Qxe8 {[%clk 0:00:04.5]} 31... Rxe8 {[%clk 0:01:00.6]} 32.
Nxd7 {[%clk 0:00:03.1]} 32... Rxd7 {[%clk 0:01:01.5]} 33. Rfd1 {[%clk
0:00:03.4]} 33... Ng5 {[%clk 0:01:01.1]} 34. Kg2 {[%clk 0:00:02]} 34... Nxe4
{[%clk 0:01:00.4]} 35. f3 {[%clk 0:00:02.6]} 35... Nc3 {[%clk 0:01:00.1]} 36.
Rd3 {[%clk 0:00:02.5]} 36... Nd5 {[%clk 0:01:00.9]} 37. Nf5 {[%clk 0:00:02.9]}
37... Nxb6 {[%clk 0:00:59.6]} 38. Rb1 {[%clk 0:00:03]} 38... Nc4 {[%clk
0:00:59.7]} 39. a4 {[%clk 0:00:03.3]} 39... b5 {[%clk 0:01:00.2]} 40. axb5
{[%clk 0:00:03.2]} 40... axb5 {[%clk 0:00:58.9]} 41. Ra1 {[%clk 0:00:03.7]}
41... Red8 {[%clk 0:00:59.5]} 42. Ra6 {[%clk 0:00:03.8]} 42... Nxd6 {[%clk
0:00:59.4]} 43. Nxd6 {[%clk 0:00:03.2]} 43... Rxd6 {[%clk 0:01:00.3]} 44. Rc3
{[%clk 0:00:03.9]} 44... b4 {[%clk 0:00:57.9]} 45. Rb3 {[%clk 0:00:03.5]} 45...
c5 {[%clk 0:00:57.8]} 46. Ra5 {[%clk 0:00:02.9]} 46... Rc8 {[%clk 0:00:56.1]}
47. Kf2 {[%clk 0:00:03.5]} 47... Kg7 {[%clk 0:00:54.9]} 48. Ke3 {[%clk
0:00:03.4]} 48... Rb6 {[%clk 0:00:54.2]} 49. Ra4 {[%clk 0:00:03.5]} 49... Rcb8
{[%clk 0:00:53.2]} 50. Kd3 {[%clk 0:00:03.3]} 50... Rd6+ {[%clk 0:00:50.7]} 51.
Kc4 {[%clk 0:00:03.1]} 51... Rc8 {[%clk 0:00:51.3]} 52. Ra7+ {[%clk 0:00:02.5]}
52... Kg6 {[%clk 0:00:51.4]} 53. h4 {[%clk 0:00:02.4]} 53... Rd4+ {[%clk
0:00:51.4]} 54. Kb5 {[%clk 0:00:02.9]} 54... c4 {[%clk 0:00:49.3]} 55. Rxb4
{[%clk 0:00:03.3]} 55... c3 {[%clk 0:00:50.2]} 56. Rb1 {[%clk 0:00:03.6]} 56...
Rb8+ {[%clk 0:00:50]} 0-1

[Event "Early-Titled-Tuesday-Blitz-March-26-2024"]
[Site "Chess.com"]
[Date "2024.03.26"]
[Round "2"]
[White "GaiozNigalidze"]
[Black "FairChess_on_YouTube"]
[Result "0-1"]
[WhiteElo "2722"]
[BlackElo "3137"]
[TimeControl "180+1"]
[EndTime "8:17:54 PDT"]
[Termination "FairChess_on_YouTube won by resignation"]

1. d4 {[%clk 0:02:58.9]} 1... Nf6 {[%clk 0:02:57.5]} 2. c4 {[%clk 0:02:58.7]}
2... e6 {[%clk 0:02:57.7]} 3. Nf3 {[%clk 0:02:58.6]} 3... b6 {[%clk 0:02:54.9]}
4. g3 {[%clk 0:02:58.4]} 4... Bb7 {[%clk 0:02:55.2]} 5. Bg2 {[%clk 0:02:58.4]}
5... Bb4+ {[%clk 0:02:54.7]} 6. Bd2 {[%clk 0:02:58.1]} 6... a5 {[%clk
0:02:54.7]} 7. O-O {[%clk 0:02:57.2]} 7... O-O {[%clk 0:02:54.8]} 8. Nc3 {[%clk
0:02:56.7]} 8... d6 {[%clk 0:02:53.2]} 9. Qc2 {[%clk 0:02:56.2]} 9... Nbd7
{[%clk 0:02:52.5]} 10. b3 {[%clk 0:02:53.3]} 10... Qc8 {[%clk 0:02:46.6]} 11.
Nb5 {[%clk 0:02:34]} 11... Be4 {[%clk 0:02:44.7]} 12. Qc1 {[%clk 0:02:32.8]}
12... Bxd2 {[%clk 0:02:37.5]} 13. Nxd2 {[%clk 0:02:30.3]} 13... Bxg2 {[%clk
0:02:37.1]} 14. Kxg2 {[%clk 0:02:30.4]} 14... Qb7+ {[%clk 0:02:35.4]} 15. Nf3
{[%clk 0:02:23.5]} 15... a4 {[%clk 0:02:28.5]} 16. Nc3 {[%clk 0:02:08.3]} 16...
axb3 {[%clk 0:02:26.1]} 17. axb3 {[%clk 0:02:08.3]} 17... Ne4 {[%clk 0:02:21.9]}
18. Qe3 {[%clk 0:01:59.5]} 18... Ndf6 {[%clk 0:02:18.2]} 19. Nxe4 {[%clk
0:01:56.2]} 19... Nxe4 {[%clk 0:02:19.1]} 20. Kg1 {[%clk 0:01:53.8]} 20... h6
{[%clk 0:02:16.9]} 21. Nd2 {[%clk 0:01:37.5]} 21... Nf6 {[%clk 0:02:11.9]} 22.
Qf3 {[%clk 0:01:34.4]} 22... Qxf3 {[%clk 0:02:04.3]} 23. Nxf3 {[%clk 0:01:19.4]}
23... Ne4 {[%clk 0:02:03.6]} 24. Rfc1 {[%clk 0:01:16.4]} 24... f5 {[%clk
0:01:58]} 25. Kf1 {[%clk 0:01:10.8]} 25... Kf7 {[%clk 0:01:57.9]} 26. Ke1 {[%clk
0:01:10.2]} 26... g5 {[%clk 0:01:51]} 27. Nd2 {[%clk 0:01:09]} 27... Nf6 {[%clk
0:01:50.9]} 28. h3 {[%clk 0:01:06.3]} 28... Ke7 {[%clk 0:01:48]} 29. Kd1 {[%clk
0:00:58.8]} 29... h5 {[%clk 0:01:38.4]} 30. e3 {[%clk 0:00:56.2]} 30... g4
{[%clk 0:01:38]} 31. h4 {[%clk 0:00:52.4]} 31... e5 {[%clk 0:01:33.7]} 32. Kc2
{[%clk 0:00:49.8]} 32... Ke6 {[%clk 0:01:22.4]} 33. Rxa8 {[%clk 0:00:43.7]}
33... Rxa8 {[%clk 0:01:21.8]} 34. Kb2 {[%clk 0:00:40.7]} 34... f4 {[%clk
0:01:16.1]} 35. exf4 {[%clk 0:00:33.9]} 35... exf4 {[%clk 0:01:16.3]} 36. Re1+
{[%clk 0:00:33.1]} 36... Kf5 {[%clk 0:01:16.6]} 37. Re7 {[%clk 0:00:32.6]} 37...
Re8 {[%clk 0:01:15.7]} 38. Rxe8 {[%clk 0:00:31.6]} 38... Nxe8 {[%clk 0:01:16.6]}
39. Kc3 {[%clk 0:00:31.8]} 39... Nf6 {[%clk 0:01:08.3]} 40. Kd3 {[%clk
0:00:30.1]} 40... d5 {[%clk 0:01:08.6]} 41. cxd5 {[%clk 0:00:19]} 41... Nxd5
{[%clk 0:01:08.3]} 42. Nc4 {[%clk 0:00:18]} 42... Nf6 {[%clk 0:00:55]} 43. Nd2
{[%clk 0:00:16.4]} 43... b5 {[%clk 0:00:53.2]} 44. d5 {[%clk 0:00:16]} 44...
Nxd5 {[%clk 0:00:47.8]} 45. Kd4 {[%clk 0:00:16.1]} 45... Nf6 {[%clk 0:00:38]}
46. Kc5 {[%clk 0:00:16.1]} 46... fxg3 {[%clk 0:00:34.5]} 47. fxg3 {[%clk
0:00:15.8]} 47... Ne4+ {[%clk 0:00:34.6]} 48. Nxe4 {[%clk 0:00:16]} 48... Kxe4
{[%clk 0:00:35.5]} 49. Kxb5 {[%clk 0:00:15.4]} 49... Kf3 {[%clk 0:00:36.1]} 50.
Kc6 {[%clk 0:00:15.7]} 50... Kxg3 {[%clk 0:00:36.7]} 51. Kxc7 {[%clk 0:00:16]}
51... Kxh4 {[%clk 0:00:37.2]} 52. b4 {[%clk 0:00:16.3]} 52... g3 {[%clk
0:00:38.1]} 53. b5 {[%clk 0:00:16.6]} 53... g2 {[%clk 0:00:39]} 54. b6 {[%clk
0:00:16.9]} 54... g1=Q {[%clk 0:00:39.9]} 0-1

[Event "Early-Titled-Tuesday-Blitz-March-26-2024"]
[Site "Chess.com"]
[Date "2024.03.26"]
[Round "2"]
[White "MikeWizard"]
[Black "Savagelittlemole"]
[Result "0-1"]
[WhiteElo "2101"]
[BlackElo "2470"]
[TimeControl "180+1"]
[EndTime "8:17:55 PDT"]
[Termination "Savagelittlemole won on time"]

1. d4 {[%clk 0:03:00.9]} 1... Nf6 {[%clk 0:02:50.7]} 2. c4 {[%clk 0:02:59.8]}
2... c5 {[%clk 0:02:51.4]} 3. d5 {[%clk 0:02:59.2]} 3... e6 {[%clk 0:02:51.6]}
4. Nc3 {[%clk 0:02:58.2]} 4... exd5 {[%clk 0:02:52.1]} 5. cxd5 {[%clk
0:02:58.3]} 5... d6 {[%clk 0:02:52.8]} 6. Nf3 {[%clk 0:02:58.3]} 6... g6 {[%clk
0:02:52.5]} 7. h3 {[%clk 0:02:56.8]} 7... Bg7 {[%clk 0:02:53]} 8. Bf4 {[%clk
0:02:56.5]} 8... a6 {[%clk 0:02:52.7]} 9. a4 {[%clk 0:02:56.3]} 9... O-O {[%clk
0:02:53.2]} 10. e3 {[%clk 0:02:56.3]} 10... Qe7 {[%clk 0:02:49.1]} 11. Qc2
{[%clk 0:02:44.5]} 11... Nbd7 {[%clk 0:02:49.2]} 12. a5 {[%clk 0:02:39.2]} 12...
Nh5 {[%clk 0:02:49.1]} 13. Bg5 {[%clk 0:02:26.1]} 13... Bf6 {[%clk 0:02:44.6]}
14. Bxf6 {[%clk 0:02:22]} 14... Nhxf6 {[%clk 0:02:43.7]} 15. Bd3 {[%clk
0:02:20.6]} 15... Ne5 {[%clk 0:02:42.3]} 16. Nxe5 {[%clk 0:02:17.7]} 16... Qxe5
{[%clk 0:02:42.5]} 17. O-O {[%clk 0:02:17.1]} 17... Nxd5 {[%clk 0:02:38.1]} 18.
Nxd5 {[%clk 0:02:09.3]} 18... Qxd5 {[%clk 0:02:39]} 19. Rfd1 {[%clk 0:02:02.5]}
19... Qg5 {[%clk 0:02:35.3]} 20. Kh2 {[%clk 0:01:53.1]} 20... Be6 {[%clk
0:02:27.8]} 21. Be4 {[%clk 0:01:51.4]} 21... d5 {[%clk 0:02:23.5]} 22. f4 {[%clk
0:01:45]} 22... Qe7 {[%clk 0:02:12.1]} 23. Bxd5 {[%clk 0:01:40.2]} 23... Bxd5
{[%clk 0:02:12.1]} 24. Rxd5 {[%clk 0:01:40]} 24... Qxe3 {[%clk 0:02:12.2]} 25.
f5 {[%clk 0:01:31.7]} 25... Rac8 {[%clk 0:02:10.4]} 26. Rf1 {[%clk 0:01:21.4]}
26... Rfd8 {[%clk 0:02:05.8]} 27. Qd1 {[%clk 0:01:15.3]} 27... Qe8 {[%clk
0:01:32.8]} 28. f6 {[%clk 0:01:11.3]} 28... Rxd5 {[%clk 0:01:25.5]} 29. Qxd5
{[%clk 0:01:10.9]} 29... Qc6 {[%clk 0:01:25.7]} 30. Qg5 {[%clk 0:01:07.8]} 30...
Qd6+ {[%clk 0:01:19.5]} 31. Kh1 {[%clk 0:01:04.5]} 31... Rc6 {[%clk 0:01:18.7]}
32. h4 {[%clk 0:00:55.1]} 32... c4 {[%clk 0:01:06.9]} 33. Qh6 {[%clk 0:00:54.5]}
33... Qf8 {[%clk 0:01:05.9]} 34. Qg5 {[%clk 0:00:51.1]} 34... Rc5 {[%clk
0:01:05.4]} 35. Qe3 {[%clk 0:00:45.7]} 35... Rh5 {[%clk 0:01:04.9]} 36. g3
{[%clk 0:00:42.3]} 36... Rxa5 {[%clk 0:00:57.4]} 37. Rf4 {[%clk 0:00:34.3]}
37... Rc5 {[%clk 0:00:40.3]} 38. Re4 {[%clk 0:00:29.8]} 38... Rc8 {[%clk
0:00:40.7]} 39. Re7 {[%clk 0:00:28.5]} 39... Qd8 {[%clk 0:00:38.9]} 40. Qh6
{[%clk 0:00:23.2]} 40... Qf8 {[%clk 0:00:32.4]} 41. Qe3 {[%clk 0:00:15.1]} 41...
b5 {[%clk 0:00:31.5]} 42. Kg2 {[%clk 0:00:12.8]} 42... h5 {[%clk 0:00:30.7]} 43.
Kh3 {[%clk 0:00:09.7]} 43... b4 {[%clk 0:00:27.9]} 44. Re5 {[%clk 0:00:05.4]}
44... Qd8 {[%clk 0:00:18.6]} 45. Re7 {[%clk 0:00:01.2]} 45... c3 {[%clk
0:00:16.8]} 0-1

[Event "Early-Titled-Tuesday-Blitz-March-26-2024"]
[Site "Chess.com"]
[Date "2024.03.26"]
[Round "2"]
[White "Ginger_GM"]
[Black "ActorXu"]
[Result "0-1"]
[WhiteElo "2575"]
[BlackElo "2853"]
[TimeControl "180+1"]
[EndTime "8:17:58 PDT"]
[Termination "ActorXu won by resignation"]

1. d4 {[%clk 0:03:00.9]} 1... Nf6 {[%clk 0:02:59.8]} 2. Bg5 {[%clk 0:02:58.9]}
2... d5 {[%clk 0:02:57.1]} 3. Bxf6 {[%clk 0:02:57.7]} 3... gxf6 {[%clk 0:02:57]}
4. c4 {[%clk 0:02:56]} 4... dxc4 {[%clk 0:02:41.7]} 5. e3 {[%clk 0:02:53.2]}
5... c5 {[%clk 0:02:40.4]} 6. d5 {[%clk 0:02:52.9]} 6... Nd7 {[%clk 0:02:22.8]}
7. Nc3 {[%clk 0:02:39.1]} 7... f5 {[%clk 0:02:09.4]} 8. Bxc4 {[%clk 0:02:36.3]}
8... Bg7 {[%clk 0:02:10]} 9. Nge2 {[%clk 0:02:31.4]} 9... O-O {[%clk 0:02:07.8]}
10. Ng3 {[%clk 0:02:25.5]} 10... Nb6 {[%clk 0:02:05.7]} 11. Bb3 {[%clk
0:02:20.8]} 11... c4 {[%clk 0:02:05.6]} 12. Bc2 {[%clk 0:02:20.6]} 12... Bxc3+
{[%clk 0:02:05.3]} 13. bxc3 {[%clk 0:02:18.6]} 13... Qxd5 {[%clk 0:02:05.6]} 14.
Qh5 {[%clk 0:02:13.2]} 14... Qe5 {[%clk 0:01:58.4]} 15. O-O {[%clk 0:02:09.8]}
15... e6 {[%clk 0:01:55.3]} 16. f4 {[%clk 0:02:00.1]} 16... Qxe3+ {[%clk
0:01:49.4]} 17. Kh1 {[%clk 0:01:59.6]} 17... Qxc3 {[%clk 0:01:48.7]} 18. Rac1
{[%clk 0:01:34]} 18... Qf6 {[%clk 0:01:27.6]} 19. Qh3 {[%clk 0:01:13.8]} 19...
Bd7 {[%clk 0:01:17.5]} 20. Nh5 {[%clk 0:01:12.3]} 20... Qh6 {[%clk 0:01:12]} 21.
Qh4 {[%clk 0:00:38.7]} 21... Kh8 {[%clk 0:00:58.2]} 22. Rf3 {[%clk 0:00:38.3]}
22... Bc6 {[%clk 0:00:46.9]} 23. Rh3 {[%clk 0:00:34.2]} 23... Rg8 {[%clk
0:00:45]} 24. Rg1 {[%clk 0:00:34.3]} 24... Rg6 {[%clk 0:00:32.7]} 25. Qf2 {[%clk
0:00:28.4]} 25... f6 {[%clk 0:00:18.6]} 26. Bd1 {[%clk 0:00:20.7]} 26... Rag8
{[%clk 0:00:17.8]} 27. Bf3 {[%clk 0:00:20.8]} 27... Bxf3 {[%clk 0:00:14.7]} 28.
Qxf3 {[%clk 0:00:21.7]} 28... Qf8 {[%clk 0:00:13.3]} 29. Qxb7 {[%clk 0:00:21]}
29... Rh6 {[%clk 0:00:09.2]} 30. Qc6 {[%clk 0:00:17.5]} 30... Qf7 {[%clk
0:00:07]} 31. Qc5 {[%clk 0:00:16.9]} 31... Rxh5 {[%clk 0:00:06.8]} 32. Re3
{[%clk 0:00:16.4]} 32... Rh6 {[%clk 0:00:06.7]} 33. Qd4 {[%clk 0:00:16]} 33...
Qh5 {[%clk 0:00:05.9]} 34. h3 {[%clk 0:00:15.8]} 34... Qg6 {[%clk 0:00:05.8]}
35. Kh2 {[%clk 0:00:12.5]} 35... Nd5 {[%clk 0:00:05.4]} 36. Rf3 {[%clk
0:00:10.6]} 36... c3 {[%clk 0:00:05]} 37. Qc4 {[%clk 0:00:10.6]} 37... Qg7
{[%clk 0:00:05.1]} 38. Rff1 {[%clk 0:00:09.7]} 38... Rg6 {[%clk 0:00:05.7]} 39.
Rf2 {[%clk 0:00:09.8]} 39... Rg3 {[%clk 0:00:05.9]} 40. Qd4 {[%clk 0:00:10.1]}
40... Re3 {[%clk 0:00:06.1]} 41. Kh1 {[%clk 0:00:09]} 41... Rxh3+ {[%clk
0:00:05.9]} 0-1

[Event "Early-Titled-Tuesday-Blitz-March-26-2024"]
[Site "Chess.com"]
[Date "2024.03.26"]
[Round "2"]
[White "HansOnTwitch"]
[Black "Incognito_Knight"]
[Result "1-0"]
[WhiteElo "3120"]
[BlackElo "2721"]
[TimeControl "180+1"]
[EndTime "8:18:00 PDT"]
[Termination "HansOnTwitch won on time"]

1. e4 {[%clk 0:02:53.6]} 1... c6 {[%clk 0:02:59.9]} 2. Nf3 {[%clk 0:02:30.2]}
2... d5 {[%clk 0:02:59.8]} 3. d3 {[%clk 0:01:42.8]} 3... g6 {[%clk 0:02:51.5]}
4. exd5 {[%clk 0:01:11.1]} 4... cxd5 {[%clk 0:02:51.7]} 5. d4 {[%clk 0:01:11.7]}
5... Nc6 {[%clk 0:02:45.6]} 6. c3 {[%clk 0:01:11.3]} 6... Bg7 {[%clk 0:02:45.8]}
7. Bd3 {[%clk 0:01:04.8]} 7... Nf6 {[%clk 0:02:41.4]} 8. O-O {[%clk 0:00:56.6]}
8... Bf5 {[%clk 0:02:39.6]} 9. Be2 {[%clk 0:00:54.7]} 9... e6 {[%clk 0:02:30.7]}
10. Nbd2 {[%clk 0:00:52.1]} 10... h5 {[%clk 0:02:23.3]} 11. Re1 {[%clk
0:00:50.8]} 11... O-O {[%clk 0:02:12.6]} 12. Nf1 {[%clk 0:00:44.5]} 12... Ne4
{[%clk 0:02:06.3]} 13. Bd3 {[%clk 0:00:42.9]} 13... a6 {[%clk 0:01:52]} 14. a4
{[%clk 0:00:39.3]} 14... Rc8 {[%clk 0:01:51.8]} 15. Ng3 {[%clk 0:00:38.7]} 15...
Nxg3 {[%clk 0:01:49.3]} 16. hxg3 {[%clk 0:00:39.6]} 16... Bxd3 {[%clk
0:01:27.5]} 17. Qxd3 {[%clk 0:00:40.5]} 17... Qd7 {[%clk 0:01:28]} 18. Bf4
{[%clk 0:00:33.6]} 18... Na5 {[%clk 0:01:26.3]} 19. Ne5 {[%clk 0:00:32.2]} 19...
Qe8 {[%clk 0:01:23]} 20. g4 {[%clk 0:00:30.1]} 20... hxg4 {[%clk 0:01:15]} 21.
Nxg4 {[%clk 0:00:28.6]} 21... f5 {[%clk 0:00:38.7]} 22. Ne5 {[%clk 0:00:20.5]}
22... Nc4 {[%clk 0:00:35]} 23. Re2 {[%clk 0:00:19.3]} 23... Nxe5 {[%clk
0:00:24.7]} 24. Bxe5 {[%clk 0:00:20.2]} 24... Bxe5 {[%clk 0:00:24]} 25. Rxe5
{[%clk 0:00:20.5]} 25... Kf7 {[%clk 0:00:20.9]} 26. Rae1 {[%clk 0:00:19.7]}
26... Rc6 {[%clk 0:00:17.9]} 27. g3 {[%clk 0:00:19.3]} 27... Qd8 {[%clk
0:00:15.5]} 28. Kg2 {[%clk 0:00:17.9]} 28... Rh8 {[%clk 0:00:15.1]} 29. Qe3
{[%clk 0:00:15.4]} 29... Qf6 {[%clk 0:00:14.8]} 30. a5 {[%clk 0:00:14.8]} 30...
g5 {[%clk 0:00:14.1]} 31. Rh1 {[%clk 0:00:14.2]} 31... Rxh1 {[%clk 0:00:13.5]}
32. Kxh1 {[%clk 0:00:15.1]} 32... Rc8 {[%clk 0:00:12.9]} 33. Kg1 {[%clk
0:00:15.1]} 33... Rh8 {[%clk 0:00:11.3]} 34. c4 {[%clk 0:00:11.2]} 34... f4
{[%clk 0:00:07.3]} 35. Qb3 {[%clk 0:00:09.1]} 35... Qh6 {[%clk 0:00:04.2]} 36.
Qxb7+ {[%clk 0:00:06.3]} 36... Kf6 {[%clk 0:00:04.6]} 37. Kf1 {[%clk 0:00:05.5]}
37... Qh1+ {[%clk 0:00:02.5]} 38. Ke2 {[%clk 0:00:05.6]} 38... f3+ {[%clk
0:00:02.3]} 39. Kd2 {[%clk 0:00:03.2]} 39... Qf1 {[%clk 0:00:02.5]} 40. Qd7
{[%clk 0:00:02.4]} 40... Qxf2+ {[%clk 0:00:02.6]} 41. Kc3 {[%clk 0:00:02.7]} 1-0

[Event "Early-Titled-Tuesday-Blitz-March-26-2024"]
[Site "Chess.com"]
[Date "2024.03.26"]
[Round "2"]
[White "GeorgiosSouleidis"]
[Black "Bauman_Guy"]
[Result "0-1"]
[WhiteElo "2625"]
[BlackElo "2922"]
[TimeControl "180+1"]
[EndTime "8:18:01 PDT"]
[Termination "Bauman_Guy won on time"]

1. e4 {[%clk 0:03:00.9]} 1... c5 {[%clk 0:02:59.8]} 2. Be2 {[%clk 0:02:57.4]}
2... d6 {[%clk 0:02:58.9]} 3. d3 {[%clk 0:02:57.8]} 3... g6 {[%clk 0:02:59]} 4.
f4 {[%clk 0:02:58.3]} 4... Bg7 {[%clk 0:02:59.3]} 5. Nf3 {[%clk 0:02:59]} 5...
Nc6 {[%clk 0:02:59.9]} 6. O-O {[%clk 0:02:59.6]} 6... Bg4 {[%clk 0:02:55.7]} 7.
c3 {[%clk 0:02:59.8]} 7... Nf6 {[%clk 0:02:54.3]} 8. Be3 {[%clk 0:02:59.9]} 8...
O-O {[%clk 0:02:53.7]} 9. h3 {[%clk 0:02:58.3]} 9... Bxf3 {[%clk 0:02:53.6]} 10.
Bxf3 {[%clk 0:02:59.2]} 10... Nd7 {[%clk 0:02:54.3]} 11. Na3 {[%clk 0:02:52.2]}
11... a6 {[%clk 0:02:53.3]} 12. Nc2 {[%clk 0:02:50.4]} 12... Rb8 {[%clk
0:02:52.3]} 13. Qd2 {[%clk 0:02:47.6]} 13... b5 {[%clk 0:02:51.9]} 14. a3 {[%clk
0:02:46.5]} 14... a5 {[%clk 0:02:51.5]} 15. d4 {[%clk 0:02:46.9]} 15... b4
{[%clk 0:02:47]} 16. axb4 {[%clk 0:02:47.8]} 16... axb4 {[%clk 0:02:45.7]} 17.
e5 {[%clk 0:02:30.2]} 17... Na5 {[%clk 0:02:42.9]} 18. Qe2 {[%clk 0:02:09.6]}
18... cxd4 {[%clk 0:02:24.8]} 19. cxd4 {[%clk 0:02:05.4]} 19... b3 {[%clk
0:02:22.5]} 20. Na3 {[%clk 0:02:03.9]} 20... e6 {[%clk 0:02:19.2]} 21. Rac1
{[%clk 0:01:53.1]} 21... d5 {[%clk 0:02:17.7]} 22. Qd2 {[%clk 0:01:39.5]} 22...
Ra8 {[%clk 0:02:14.2]} 23. Be2 {[%clk 0:01:23.7]} 23... Nb6 {[%clk 0:01:54.4]}
24. Rc5 {[%clk 0:01:23.5]} 24... Na4 {[%clk 0:01:53.9]} 25. Rb5 {[%clk
0:01:12.4]} 25... Re8 {[%clk 0:01:48.5]} 26. g4 {[%clk 0:00:36.2]} 26... Bf8
{[%clk 0:01:40.9]} 27. f5 {[%clk 0:00:36.3]} 27... exf5 {[%clk 0:01:22.6]} 28.
gxf5 {[%clk 0:00:35.9]} 28... Qh4 {[%clk 0:01:23.1]} 29. Kh2 {[%clk 0:00:32.9]}
29... Bxa3 {[%clk 0:01:21.2]} 30. bxa3 {[%clk 0:00:32.9]} 30... Nc4 {[%clk
0:01:21.7]} 31. Bxc4 {[%clk 0:00:32.7]} 31... dxc4 {[%clk 0:01:22.1]} 32. Bg5
{[%clk 0:00:25]} 32... Qe4 {[%clk 0:01:18.1]} 33. Bf6 {[%clk 0:00:25.4]} 33...
Qc2 {[%clk 0:00:57.7]} 34. Qxc2 {[%clk 0:00:21.7]} 34... bxc2 {[%clk 0:00:58.6]}
35. Rc1 {[%clk 0:00:18.8]} 35... Nc3 {[%clk 0:00:43.4]} 36. Rc5 {[%clk
0:00:18.7]} 36... Ne2 {[%clk 0:00:39.5]} 37. Rxc2 {[%clk 0:00:17.5]} 37... Nxd4
{[%clk 0:00:39.9]} 38. R2xc4 {[%clk 0:00:15]} 38... Nxf5 {[%clk 0:00:39.6]} 39.
a4 {[%clk 0:00:14.4]} 39... h6 {[%clk 0:00:38.1]} 40. a5 {[%clk 0:00:12.3]}
40... g5 {[%clk 0:00:38.2]} 41. Ra4 {[%clk 0:00:11.8]} 41... Re6 {[%clk
0:00:36.4]} 42. Rac4 {[%clk 0:00:10.5]} 42... Kh7 {[%clk 0:00:36.4]} 43. Ra4
{[%clk 0:00:07.1]} 43... Kg6 {[%clk 0:00:36.1]} 44. Kg2 {[%clk 0:00:07.6]} 44...
Nh4+ {[%clk 0:00:28.7]} 45. Kf2 {[%clk 0:00:06.4]} 45... Kf5 {[%clk 0:00:29.6]}
46. Ke3 {[%clk 0:00:06.2]} 46... Ng6 {[%clk 0:00:29.4]} 47. Kd4 {[%clk
0:00:05.8]} 47... Nf4 {[%clk 0:00:30.1]} 48. Kc4 {[%clk 0:00:01.9]} 48... Nxh3
{[%clk 0:00:27.5]} 0-1